Cogmind - Beta 15 @@@ ROGUE MODE // 2025.05.24 @ 21:44:34 Player: Darcyisverycute Result: Core destroyed Performance ------------- Evolutions (1) 500 Regions Visited (5) 1000 Robots Destroyed (42) 210 Value Destroyed (948) 948 Prototype IDs (25) 500 Alien Tech Used (0) 0 Bonus (283) 283 TOTAL SCORE: 3441 Bonus ------- Follower Combat Kills 7 Aligned with FarCom 300 Friendly Fire -24 Cogmind --------- Core Integrity 0/400 Matter 57/300 Energy 99/100 System Corruption 0% Temperature Cool (0) Movement Core (50) Location -9/Exiles Parts ------- > --- POWER (1) -------- (None) > --- PROPULSION (3) --- (None) > --- UTILITY (2) ------ (None) > --- WEAPON (3) ------- (None) > --- INVENTORY (5) ---- Grenade Launcher Peak State ------------ > --- POWER ------------ Nuclear Core > --- PROPULSION ------- Light Treads Light Treads Light Treads > --- UTILITY ---------- High-capacity Storage Unit Light Armor Plating > --- WEAPON ----------- Advanced Beam Rifle Assault Rifle Heavy Assault Rifle > --- INVENTORY -------- Reinforced Deuterium Engine Fission Core Light Fission Core Flying Fortress v7 Army-in-a-Box Firepult Light Assault Rifle Light Assault Rifle Heavy Assault Rifle Heavy Assault Rifle Grenade Launcher [Rating: 27] Favorites ----------- Power Nuclear Core Engine Light Ion Engine Power Core Nuclear Core Propulsion Light Treads Treads Light Treads Utility High-capacity Storage Unit Device Seismic Detector Storage High-capacity Storage Unit Protection Light Armor Plating Weapon Light Assault Rifle Energy Gun Advanced Beam Rifle Energy Cannon Beam Cannon Ballistic Gun Light Assault Rifle Launcher Grenade Launcher Special Weapon Mining Laser Build | -11 -10 -10 -9 -9 -9 ------- Run | Yrd Mat Min Mat Min Exi Slots Evolved 2 | . . . 2 . . Power . | . . . . . . Propulsion 1 | . . . 1 . . Utility . | . . . . . . Weapon 1 | . . . 1 . . Parts Attached 46 | 9 6 3 14 8 6 Power 5 | 1 . 1 2 1 . Engine 3 | 1 . 1 1 . . Core 2 | . . . 1 1 . Reactor . | . . . . . . Propulsion 10 | 2 1 . 4 3 . Treads 10 | 2 1 . 4 3 . Leg . | . . . . . . Wheel . | . . . . . . Hover . | . . . . . . Flight . | . . . . . . Utility 13 | 3 4 1 2 1 2 Device 3 | 2 . . 1 . . Storage 4 | 1 2 1 . . . Processor . | . . . . . . Hackware . | . . . . . . Protection 6 | . 2 . 1 1 2 Artifact . | . . . . . . Weapon 18 | 3 1 1 6 3 4 Energy Gun 5 | 2 . . 3 . . Energy Cannon 1 | . 1 . . . . Ballistic Gun 9 | 1 . . 2 2 4 Ballistic Cannon . | . . . . . . Launcher 1 | . . . 1 . . Special Weapon 2 | . . 1 . 1 . Impact Weapon . | . . . . . . Slashing Weapon . | . . . . . . Piercing Weapon . | . . . . . . Special Melee Weapon . | . . . . . . Unidentified Prototypes 2 | . . . 2 . . Parts Lost 24 | . 1 . 3 7 13 Power 3 | . . . 1 1 1 Propulsion 9 | . 1 . 2 3 3 Utility 4 | . . . . 1 3 Weapon 8 | . . . . 2 6 Highest Loss Streak 9 | . 1 . 2 7 9 To Critical Strikes 8 | . . . . . 8 Average Backups 12 | 2 8 15 19 15 9 Power 1 | . 1 . . . 2 Propulsion . | . 1 1 1 . . Utility 6 | . 4 9 10 8 2 Weapon 4 | 1 1 4 6 6 4 Tool/Special . | . . . . . . Unused Backups 27 | . 3 2 8 . 14 Power 3 | . . . . . 3 Propulsion 2 | . . . 1 . 1 Utility 19 | . 3 2 5 . 9 Weapon 3 | . . . 2 . 1 Tool/Special . | . . . . . . Average Slot Usage (%) 96 | . 99 100 93 96 94 Engine 6 | . 14 14 1 . . Core 5 | . . . 5 10 10 Treads 29 | . 27 28 31 33 29 Device 7 | . 12 14 10 . . Storage 10 | . 14 14 11 11 5 Protection 5 | . 1 . . 10 14 Energy Gun 6 | . 7 . 11 13 6 Energy Cannon 4 | . 6 14 1 . . Ballistic Gun 16 | . 14 1 18 15 26 Special Weapon 3 | . . 12 1 3 . Peak Build Rating 27 | 9 8 10 21 19 27 Average Rating 12 | 4 7 9 14 16 16 On Entrance 10 | . 7 8 10 18 17 Naked Turns . | . . . . . . Heaviest Build 59 | 12 28 50 59 59 57 Greatest Support 60 | 40 40 40 60 60 60 Greatest Overweight (x) 1 | . 1 1 1 1 . Average Overweight (x) . | . . . . . . Largest Inventory Capacity 20 | 8 15 20 20 20 20 Average Capacity 15 | 5 12 18 20 20 13 Most Carried 20 | 3 13 16 20 20 20 Average Carried 12 | 2 8 15 19 15 10 Final Capacity 20 | 8 15 20 20 20 5 Final Carried 20 | 3 13 16 20 16 1 Class Distribution -------------------- 44% | Mutant 31% | Scavenger-Tank 20% | Scavenger-Gunner Dominant Class ---------------- Mutant | -10/Materials Mutant | -10/Mines Scavenger-Gunner | -9/Materials Scavenger-Tank | -9/Mines Scavenger-Tank | -9/Exiles Resources | -11 -10 -10 -9 -9 -9 ----------- Run | Yrd Mat Min Mat Min Exi Matter Collected 1086 | 253 180 80 340 13 220 Remotely . | . . . . . . Salvage Created 1455 | 164 504 6 720 46 15 Parts 100 | 11 38 3 48 . . Haulers Intercepted 3 | . 1 . 2 . . Recyclers Shooed . | . . . . . . Parts Field Recycled . | . . . . . . Retrieved Matter . | . . . . . . Parts Self-Destructed . | . . . . . . Prevented . | . . . . . . Kills | -11 -10 -10 -9 -9 -9 ------- Run | Yrd Mat Min Mat Min Exi Combat Hostiles Destroyed 37 | . 13 . 14 6 4 Guns 26 | . 6 . 13 6 1 Cannons 8 | . 7 . 1 . . AOE 3 | . . . . . 3 Classes Destroyed 12 | 3 4 . 3 2 . Worker 4 | 1 . 1 2 . . Tunneler 2 | 2 . . . . . Hauler 3 | . 1 . 2 . . Recycler 1 | 1 . . . . . Operator 1 | . . . 1 . . Watcher 2 | . 2 . . . . Swarmer 9 | . 5 . 3 1 . Grunt 12 | . 8 . 4 . . Duelist 2 | . . . 2 . . Sentry 5 | . . . 5 . . Demolisher 1 | . . . . 1 . Assembled 8 | . . . . 4 4 Best Kill Streak 4 | 2 4 1 3 2 4 Combat Bots Only 4 | . 3 . 3 2 4 Max Kills in Single Turn 2 | 1 1 1 2 1 1 Gunslinging 1 | . . . 1 . . Exploded 1 | . . . . . 1 Melee . | . . . . . . Uniques/NPCs Destroyed . | . . . . . . Combat | -11 -10 -10 -9 -9 -9 -------- Run | Yrd Mat Min Mat Min Exi Hostile Shots Fired 260 | . 67 . 48 49 96 Missed 48 | . 16 . 7 9 16 Hits 212 | . 51 . 41 40 80 Melee 7 | . . . 7 . . Projectile 205 | . 51 . 34 40 80 AOE 17 | . . . . 17 . Critical Strikes 49 | . . . 2 . 47 Damage Taken 3435 | 4 545 . 671 892 1323 Core 499 | . 96 . 65 66 272 Absorbed by Shields . | . . . . . . Redirected to Shielding 4 | . 4 . . . . Core Remaining (%) 80 | 100 . 61 . . . Volleys Fired 192 | 8 58 9 48 14 55 Largest 3 | 2 2 1 3 3 3 Hottest 142 | 70 80 100 142 142 73 Shots Fired 434 | 13 116 9 128 30 138 Gun 378 | 13 91 . 114 25 135 Cannon 31 | . 25 . 6 . . Launcher 6 | . . . 3 . 3 Special 19 | . . 9 5 5 . Kinetic 284 | 5 58 . 73 13 135 Thermal 141 | 5 58 9 52 17 . Explosive 6 | . . . 3 . 3 Electromagnetic 3 | 3 . . . . . Robot Hit Streak 35 | 5 11 3 35 6 12 Robot Miss Streak 6 | 2 4 2 3 1 6 Penetration Max . | . . . . . . Secondary Targets 3 | . . . 2 1 . Max Gunslinging Chain 1 | . . . 1 1 . Shots Hit Robots 266 | 9 63 2 88 12 92 Core Hits 103 | 6 26 1 38 8 24 Critical Kills . | . . . . . . Critical Parts Destroyed . | . . . . . . Critical Strikes 7 | 1 2 . 4 . . Burn 7 | 1 2 . 4 . . Melee Attacks . | . . . . . . Impact . | . . . . . . Slashing . | . . . . . . Piercing . | . . . . . . Sneak Attacks . | . . . . . . Combat Hostiles . | . . . . . . Follow-up Attacks . | . . . . . . Damage Inflicted 3649 | 134 775 48 1152 259 1281 Guns 2986 | 98 478 . 1065 235 1110 Cannons 384 | . 297 . 87 . . Explosions 206 | 36 . . . . 170 Melee . | . . . . . . Ramming 1 | . . . . . 1 Kinetic 1853 | 21 274 . 413 35 1110 Thermal 1586 | 74 501 48 739 224 . Explosive 170 | . . . . . 170 Electromagnetic 39 | 39 . . . . . Impact . | . . . . . . Slashing . | . . . . . . Piercing . | . . . . . . Highest Corruption . | . . . . . . Average Corruption . | . . . . . . Corruption Purged . | . . . . . . Corruption Blocked . | . . . . . . Overload Shots . | . . . . . . Overflow Damage . | . . . . . . Projectiles . | . . . . . . Explosions . | . . . . . . Melee . | . . . . . . Knockbacks . | . . . . . . Impact . | . . . . . . Kinetic . | . . . . . . Secondary . | . . . . . . Self-Inflicted Damage 7 | 5 . . 2 . . Shots 2 | 1 . . 1 . . Rammed 1 | . . . . . 1 Targets Rammed 1 | . . . . . 1 Kicked . | . . . . . . Crushed . | . . . . . . Highest Temperature 357 | 50 198 60 357 117 249 Average Temperature 75 | 22 68 17 72 44 134 Received Heat Transfer 491 | . 222 . 189 40 40 Effects 3 | . . . . . 3 Energy Bleed 2 | . . . . . 2 Interference 1 | . . . . . 1 Siege Activations . | . . . . . . Martial Activations . | . . . . . . Shielding Activations . | . . . . . . Robots Disrupted . | . . . . . . Combat Hostiles . | . . . . . . Robots Corrupted . | . . . . . . Combat Hostiles . | . . . . . . Parts Fried . | . . . . . . Impact Corruptions . | . . . . . . Robots Melted . | . . . . . . Combat Hostiles . | . . . . . . Parts Melted 7 | 2 1 . 4 . . Heat Transferred 3900 | 235 1369 100 1776 420 . Parts Sabotaged . | . . . . . . Parts Stolen . | . . . . . . Parts Stripped . | . . . . . . Power Chain Reactions 1 | 1 . . . . . Alert | -11 -10 -10 -9 -9 -9 ------- Run | Yrd Mat Min Mat Min Exi Maximum Alert Level . | . . . . . . Low Security (%) 100 | 100 100 100 100 100 . Level 1 . | . . . . . . Level 2 . | . . . . . . Level 3 . | . . . . . . Level 4 . | . . . . . . Level 5 . | . . . . . . High Security . | . . . . . . Max Security . | . . . . . . Peak Influence 159 | 10 159 54 132 42 . Initial 54 | . . 54 . 28 . Average 51 | 1 95 4 70 17 . Influence Increases 1102 | 20 467 12 499 104 . Destroy 0b10 Robot/C 600 | . 260 . 280 60 . Destroy 0b10 Robot/NC 65 | 20 15 5 25 . . Destroy Leader 160 | . 56 . 94 10 . Allied During Kill 1 | . . . . 1 . Successful Hack 26 | . . . 26 . . Select Force Hacks 120 | . 60 . 60 . . Destroy Structure 25 | . 1 7 14 3 . Partial Spotted 15 | . 15 . . . . Lose Combat Pursuer 90 | . 60 . . 30 . Influence Decreases 1102 | 20 328 151 426 165 12 Entered New Map 142 | . . 85 . 45 12 Time Decay 902 | 20 318 66 416 82 . Lost Part 38 | . 10 . 10 18 . Lost Ally 20 | . . . . 20 . Squads Dispatched 7 | . 5 . 2 . . Investigation 5 | . 3 . 2 . . Extermination . | . . . . . . Reinforcement 2 | . 2 . . . . Assault . | . . . . . . Garrison . | . . . . . . Intercept . | . . . . . . Searches Triggered . | . . . . . . Construction Impeded . | . . . . . . Haulers Reinforced . | . . . . . . Active Scanning Responses . | . . . . . . Cargo Convoy Interrupts . | . . . . . . Stealth | -11 -10 -10 -9 -9 -9 --------- Run | Yrd Mat Min Mat Min Exi Distress Signals 4 | . 2 . 1 1 . Communications Jammed . | . . . . . . Distress Signals . | . . . . . . Times Spotted 85 | . 30 . 22 28 5 Peak Tracking Total 20 | . 6 . 5 20 9 Tactical Retreats 5 | . 2 . . 3 . Traps | -11 -10 -10 -9 -9 -9 ------- Run | Yrd Mat Min Mat Min Exi Traps Triggered 4 | . 2 . 2 . . Indirectly . | . . . . . . Trap Hack Attempts . | . . . . . . Triggered . | . . . . . . Disarmed . | . . . . . . Reprogrammed . | . . . . . . Reused . | . . . . . . Traps Extracted . | . . . . . . Installed . | . . . . . . Triggered . | . . . . . . Machines | -11 -10 -10 -9 -9 -9 ---------- Run | Yrd Mat Min Mat Min Exi Machines Disabled 4 | . . . . . 4 Max in Single Turn 1 | . . . . . 1 Machines Repaired . | . . . . . . Machines Dismantled . | . . . . . . Machines Sabotaged . | . . . . . . Overloaded Fab Kills . | . . . . . . Hacking | -11 -10 -10 -9 -9 -9 --------- Run | Yrd Mat Min Mat Min Exi Machines Accessed 15 | . 6 . 7 . 2 Terminals 9 | . 4 . 5 . . Fabricators . | . . . . . . Repair Stations . | . . . . . . Recycling Units 4 | . 2 . 2 . . Scanalyzers . | . . . . . . Garrison Access . | . . . . . . Total Hacks 29 | . 10 . 17 . 2 Successful 12 | . 3 . 7 . 2 Failed 16 | . 7 . 9 . . Catastrophic 3 | . 2 . 1 . . Database Lockouts 1 | . . . 1 . . Manual 23 | . 10 . 12 . 1 Terminals 19 | . 7 . 12 . . Fabricators . | . . . . . . Repair Stations . | . . . . . . Recycling Units 8 | . 3 . 5 . . Scanalyzers . | . . . . . . Garrison Access . | . . . . . . Terminal Hacks 8 | . 1 . 5 . 2 Record 1 | . . . . . 1 Part Schematic 2 | . . . 2 . . Robot Analysis 1 | . 1 . . . . Branch Access Points 1 | . . . 1 . . Alert Level 1 | . . . 1 . . Zone Layout 1 | . . . 1 . . Proto ID Catalog 1 | . . . . . 1 Fabricator Hacks . | . . . . . . Repair Station Hacks . | . . . . . . Recycling Unit Hacks . | . . . . . . Scanalyzer . | . . . . . . Garrison Access Hacks . | . . . . . . Unauthorized Hacks 4 | . 2 . 2 . . Terminals . | . . . . . . Fabricators . | . . . . . . Repair Stations . | . . . . . . Recycling Units 4 | . 2 . 2 . . Tunnel 4 | . 2 . 2 . . Scanalyzers . | . . . . . . Garrison Access . | . . . . . . Data Cores Recovered 1 | . . . 1 . . Used . | . . . . . . Hacking Detections 9 | . 4 . 5 . . Full Trace Events . | . . . . . . Feedback Events . | . . . . . . Feedback Blocked . | . . . . . . Robot Schematics Acquired . | . . . . . . Robots Built . | . . . . . . Authchips . | . . . . . . Time . | . . . . . . Total Robot Build Rating . | . . . . . . Part Schematics Acquired 2 | . . . 2 . . Parts Built . | . . . . . . Authchips . | . . . . . . Time . | . . . . . . Total Part Build Rating . | . . . . . . Parts Repaired . | . . . . . . Time . | . . . . . . Parts Recycled . | . . . . . . Recycled Matter . | . . . . . . Retrieved Matter . | . . . . . . Retrieved Components . | . . . . . . Parts Scanalyzed . | . . . . . . Part Schematics Acquired . | . . . . . . Parts Damaged . | . . . . . . Bothacking | -11 -10 -10 -9 -9 -9 ------------ Run | Yrd Mat Min Mat Min Exi Used RIF Installer . | . . . . . . Robots Hacked . | . . . . . . Non-combat . | . . . . . . Combat . | . . . . . . Robot Hacks Applied . | . . . . . . Relay Couplers Released . | . . . . . . Fabnet Peak Effective % . | . . . . . . Robots Rewired . | . . . . . . Allies Hacked . | . . . . . . Hacks Repelled . | . . . . . . Allies | -11 -10 -10 -9 -9 -9 -------- Run | Yrd Mat Min Mat Min Exi Total Allies 1 | . . . . 1 . Largest Group 1 | . . . . 1 . Highest-Rated Group 31 | . . . . 31 . Highest-Rated Ally 31 | . . . . 31 . Total Orders . | . . . . . . Ally Attacks 8 | . . . . 8 . Total Damage 84 | . . . . 84 . Kills 1 | . . . . 1 . Allies Corrupted . | . . . . . . Allies Melted . | . . . . . . Intel | -11 -10 -10 -9 -9 -9 ------- Run | Yrd Mat Min Mat Min Exi Active Infowar (turns) 2495 | 31 736 875 853 . . Terrain 939 | 9 . 871 59 . . Seismic 1556 | 22 736 4 794 . . Robot Analysis Total 1 | . 1 . . . . Derelict Logs Recovered . | . . . . . . Drone Launches . | . . . . . . Drone Recoveries . | . . . . . . Exploration | -11 -10 -10 -9 -9 -9 ------------- Run | Yrd Mat Min Mat Min Exi Turns Passed 4353 | 180 843 875 1014 213 1228 Spaces Moved 2033 | 90 387 391 452 94 619 Core 5 | 4 . . . . 1 Treads 2028 | 86 387 391 452 94 618 Legs . | . . . . . . Wheels . | . . . . . . Hover . | . . . . . . Flight . | . . . . . . Fastest Speed 50 | 50 160 160 160 160 50 Average Speed 171 | 155 160 211 166 160 159 Slowest Speed 240 | 160 240 240 240 240 160 Overloaded Moves . | . . . . . . Propulsion Burnouts . | . . . . . . Robots Hopped . | . . . . . . Potential Cave-ins 3 | . . . 3 . . Cave-ins Triggered . | . . . . . . Exploration Rate (%) 48 | 6 78 61 45 31 69 Regions Visited 5 Branch Regions 3 Pre-discovered Areas 6 | . 2 1 2 . 1 Known Exits Taken 1 | . . . 1 . . Unknown Exits Taken 4 | 1 1 1 . 1 . Scrap Searched 1 | . . 1 . . . Spaces Dug 14 | . . 5 5 4 . Terrain Destroyed 67 | 3 . 7 34 4 19 Melee . | . . . . . . Projectile 16 | . . 7 5 4 . AOE 51 | 3 . . 29 . 19 Terrain Rammed . | . . . . . . Walls Destroyed . | . . . . . . Machines Disabled . | . . . . . . Actions | -11 -10 -10 -9 -9 -9 --------- Run | Yrd Mat Min Mat Min Exi Total 2537 | 114 504 412 620 121 766 Wait 128 | 4 33 . 51 . 40 Move 2028 | 89 386 390 451 93 619 Hop . | . . . . . . Pick Up 70 | 4 14 6 25 4 17 Fast Attach 16 | 6 . . 8 . 2 Attach 16 | 1 1 . 3 7 4 Detach . | . . . . . . Swap 30 | 2 7 4 13 2 2 Drop 57 | . 5 3 21 1 27 Fire 192 | 8 58 9 48 14 55 Melee . | . . . . . . Ram . | . . . . . . Kick . | . . . . . . Crush . | . . . . . . Escape Stasis . | . . . . . . Rewire . | . . . . . . Trap . | . . . . . . Miscellaneous . | . . . . . . Route ------- -11/Scrapyard -10/Materials (discovered 4 exits: *Mat x3 / [*Min]) -10/Mines -9/Materials (discovered 2 exits: [*Mat] / *Min) -9/Mines (discovered 2 exits: [*Mat] / *Exi) -9/Exiles History --------- Turn | Location | Event 17 | -11/Scrapyard | Discovered new exit (range 16) 181 | -11/Scrapyard | Entered Materials 311 | -10/Materials | Build established: Mutant 489 | -10/Materials | Discovered new exit (range 16) 627 | -10/Materials | Discovered new exit (range 16) 934 | -10/Materials | Discovered new exit (range 10) 1010 | -10/Materials | Discovered new exit (range 6) 1024 | -10/Materials | Entered Mines 1025 | -10/Mines | Learned location of Storage (-7) 1154 | -10/Mines | YI-UF0 nonchalantly dropped a Grenade Launcher on the ground 1507 | -10/Mines | Discovered new exit (range 5) 1899 | -10/Mines | Entered Materials 1899 | -9/Materials | Evolved 2 slots: Propulsion x1, Weapon x1 2277 | -9/Materials | Build established: Scavenger-Gunner 2476 | -9/Materials | Discovered new exit (range 16) 2737 | -9/Materials | Identified exit to Mines 2829 | -9/Materials | Central database locked down 2913 | -9/Materials | Entered Mines 2914 | -9/Mines | Assembled infested the area 2919 | -9/Mines | Assisted by a Guerilla fighting off Assembled 2938 | -9/Mines | Met a Derelict bent on vengeance 2983 | -9/Mines | Received a Mining Laser from a helpful Derelict 2983 | -9/Mines | Lost 7 parts (1p3n1u2w) 3011 | -9/Mines | Discovered new exit (range 10) 3118 | -9/Mines | Deemed a non-threat by the Exiles lab entrance 3119 | -9/Mines | Discovered new exit (range 5) 3126 | -9/Mines | Entered Exiles 3169 | -9/Exiles | Met 8R-AWN 3187 | -9/Exiles | Build established: Scavenger-Tank 3193 | -9/Exiles | Met EX-HEX 3245 | -9/Exiles | Met EX-BIN 3313 | -9/Exiles | Met EX-DEC 3321 | -9/Exiles | Learned location of Zion (-7) 3560 | -9/Exiles | Aligned with FarCom system 3561 | -9/Exiles | Given EX-Vault access code 3603 | -9/Exiles | Opened EX-Vault 3613 | -9/Exiles | Found Army-in-a-Box 3615 | -9/Exiles | Found Firepult 3630 | -9/Exiles | Found Flying Fortress v7 3663 | -9/Exiles | Warned to stay clear of 0b10 Research branches 4117 | -9/Exiles | Attacked by the Exiles 4246 | -9/Exiles | Core integrity fell below 50% 4325 | -9/Exiles | Lost 9 parts (1p3n2u3w) 4334 | -9/Exiles | Core integrity fell below 20% 4354 | -9/Exiles | Core destroyed Last Messages --------------- 04324_ Penetrated by HV Slug. 04324_ Critical hit (Destroy). 04324_ Penetrated by HV Slug. 04328_ Critical hit (Destroy). 04328_ Lgt. Assault Rifle destroyed. 04328_ Penetrated by HV Slug. 04328_ Med. Armor Plating destroyed. 04333_ HV Slug penetrates Earth. 04333_ Penetrated by HV Slug. 04341_ HV Slug penetrates Wall. 04341_ HV Slug penetrates Earth. 04345_ Penetrated by HV Slug. 04345_ Critical hit (Destroy). 04345_ Hvy. Assault Rifle destroyed. 04345_ Penetrated by HV Slug. 04354_ Critical hit (Destroy). 04354_ Lgt. Assault Rifle destroyed. 04354_ Penetrated by HV Slug. 04354_ Slammed into 8R-AWN. 04354_ Destabilizing: Core damaged (-12). Map ----- +----------------------------------------------------+ | ?????????????????????????????????????????????????? | | ?????????????????????????????????????????????????? | | ?????????????????????????????????????????????????? | | ?????????????????????????????????????????????????? | | ?????????????????????????????????????????????????? | | ?????????????????????????????????????????????????? | | ????????? ??????????????????????????????????????? | | ????????? ?????????????????????????????????????? | | ????????# ????????????????????????????????????? | | ?????????# ???????????????????????????????????? | | ?????????# ??????????????????????????????????? | | ??????????# ?????????????#######?????????????? | | ??????????# #######??????# ! "#?????????????? | | ??????????# #""##?????# "#?????????????? | | ???????????# #?????# "#?????????????? | | ???????????##" ##???## ""#????????????## | | ???????????#"" = #####" ""#???????????? | | ??????????????# ! ## ""#????????????" | | ??????????????## ] #" ###????????????" | | ???????????????#"## ! #?????????????"" | | ??????????????????#### [ ## ##???????"" | | ?????????????????????### ! #??????? | | ???????????????######## # #???????" | | ???????????????# !!"""" [ % #????????# | | ???????????????#! ! g ###"" ####???### | | ???????????????#! !!!@ #?##" "#####X# | | ???????????????#! ! !!;#??#" | | ???????????????# !""""" ;;; #?#"# * * | | ???????????????########;# # #?#### | | ?????????????????????# # # #????### | | ?????????????????????# ?# #? ??????### | | ?????????????????????# ?# #? #???????## | | ????????????????????? ??# #??#????????## | | ????????????????????##??# #????????????##" | | ????????????????????????# #?????????????#""" | | ????????????????????????? ?????????????##" | | ????????????????????????? ?????????????#"" | | ????????????????????????? ?????????????#""" | | ????????????????????????? ????????????#""" | | ????????????????????????? ????????????#""" | | ????????????????????????? ????????????#"" | | ????????????????????????? ????????????#""" | | ??????????????????????????????????????#"" | | ??????????????????????????????????????##"" | | ???????????????????????????????????????#"""" | | ???????????????????????????????????????## | | ????????????????????????????????????????#" | | ????????????????????????????????????????#"""" | | ????????????????????????????????????????#"" | | ?????????????????????????????????????????" | +----------------------------------------------------+ Best States ------------- Heat Dissipation 38 Energy Generation 14 Energy Capacity 265 Matter Stores 300 Matter Capacity 300 Sight Range 16 Terrain Scan Range 16 Terrain Scan Density 10 Armor Coverage 450 Core Shielding 20 Evasion (%) 40 Recoil Reduction 3 Item Schematics ----------------- Hcp. Storage Unit | -9/Materials | Hacked Med. Armor Plating | -9/Materials | Hacked Robot Schematics ------------------ None Fabricated ------------ Nothing Repaired ---------- Nothing Alien Tech Used ----------------- None Achievements -------------- None Challenges ------------ None Game ------ Seed HeatActiveRigger Manual? 0 Play Time 00:35:35 Cumulative 247.9 hours Start 2025.05.23 @ 13:00:14 End 2025.05.24 @ 21:44:34 Sessions 2 Manual Loads 0 Difficulty Rogue Special Mode None Game No. 132 Rogue 124 Adventurer 8 Explorer 0 Win Type - Total 8 Types 4/0/2/1/0/0/0/0/0/1 Lore% 85 Gallery% 80 Achievement% 67 Wizard Run 0 Options --------- Layout 2 ASCII 0 Keyboard 1 Movement Numpad Keybinds 1 Fullscreen 1 Font 48/Smallcaps Map View 50x44 Zoom Use 0% Tactical HUD 1 Map Filters NONE Filters NONE Steam 1 RUN: d7ee6409-1be3-4b56-9233-266e46bd4e7c